bitfinex/quotes_ETHUSD_20220305
["timestamp","ask_amount","ask_price","bid_price","bid_amount"]
[1646448310406,0.93026446,2611.4,2611.3,0.56733341]
[1646448310615,0.93026446,2611.4,2611.3,0.94153786]
[1646448311305,0.93026446,2611.4,2611.3,1.32443786]
[1646448313055,0.93026446,2611.4,2611.3,0.94153786]
[1646448313652,0.93026446,2611.4,2611.3,1.32443786]
[1646448314366,4.5,2612.4,2611.3,1.32443786]
[1646448314367,0.70206665,2612.5,2611.6,0.3829]
[1646448314565,0.00250954,2612.2,2611.7,0.37420445]
[1646448314801,0.00250954,2612.2,2611.8,1.08104094]
[1646448315158,0.00250954,2612.2,2611.8,1.46394094]
[1646448315358,1.18330095,2612.5,2611.8,1.08104094]
[1646448315848,0.00250999,2612.2,2611.8,1.08104094]
[1646448316607,1.18330095,2612.5,2611.8,1.08104094]
[1646448317006,0.00250578,2612.2,2611.8,1.08104094]
[1646448317941,1.18330095,2612.5,2611.8,1.08104094]
[1646448318106,0.00250719,2612.2,2611.8,1.08104094]
[1646448319104,1.18330095,2612.5,2611.8,1.08104094]
[1646448319354,0.00250719,2612.2,2611.8,1.08104094]
[1646448319555,0.00250719,2612.2,2611.8,1.07782813]
[1646448320157,1.18330095,2612.5,2611.8,1.07782813]
[1646448320354,1.18330095,2612.5,2612.2,0.89402655]
[1646448320755,1.18330095,2612.5,2611.7,1.1394]
[1646448320959,1.18330095,2612.5,2611.8,0.37372655]
[1646448321261,1.18330095,2612.5,2611.8,0.75662655]
[1646448321457,1.18330095,2612.5,2611.9,0.37372655]
[1646448321659,0.1913,2613.1,2611.9,0.37372655]
[1646448321856,0.1913,2613.1,2612.0,0.3829]
[1646448321857,1.18276774,2613.0,2612.0,0.3829]
[1646448322061,1.18276774,2613.0,2612.8,1.13376325]
[1646448323901,1.18276774,2613.0,2612.9,3.5]
[1646448324104,0.00266562,2613.0,2612.9,3.5]
[1646448324316,0.00266562,2613.0,2612.8,1.13376325]
[1646448325112,0.00096,2613.4,2612.8,1.13376325]
[1646448325337,0.00264426,2613.0,2612.8,1.13376325]
[1646448326309,0.00096,2613.4,2612.8,1.13376325]
[1646448326509,1.17993251,2613.5,2612.3,1.3929]
[1646448326510,0.00264426,2613.0,2612.3,1.3929]
[1646448326761,0.00264426,2613.0,2612.3,1.7758]
[1646448326954,0.00264426,2613.0,2612.3,5.2758]
[1646448327153,0.00264426,2613.0,2612.3,4.8929]
[1646448327353,0.00264426,2613.0,2612.3,1.3929]
[1646448327553,1.17993251,2613.3,2612.6,0.92238057]
[1646448327757,0.00096,2613.4,2612.6,0.92238057]
[1646448327758,0.00264432,2612.8,2612.6,0.92238057]
[1646448327957,0.00264432,2612.8,2612.3,1.2016]
[1646448328354,0.00264432,2612.8,2612.2,1.5241]
[1646448328652,7.47,2613.1,2612.2,0.3829]
[1646448328871,0.00235884,2612.7,2612.2,0.3829]
[1646448329053,0.00235884,2612.7,2612.6,1.06699835]
[1646448329660,0.00235884,2612.7,2612.1,2.2865]
[1646448329859,3.5,2612.9,2611.9,1.1617]
[1646448329860,1.17813876,2612.8,2611.9,1.1617]
[1646448330066,3.5,2612.7,2611.9,1.1617]
[1646448330262,1.56103876,2612.6,2611.9,1.1617]
[1646448330516,6.02716085,2612.5,2611.6,2.72515479]
[1646448330709,6.02716085,2612.5,2611.5,1.0]
[1646448330710,0.3829,2612.3,2611.5,1.0]
[1646448330910,0.3829,2612.1,2611.5,1.0]
[1646448331113,0.95803,2612.4,2611.3,6.46255502]
[1646448331114,0.51525373,2611.4,2611.3,6.46255502]
[1646448331314,13.3429,2612.0,2611.3,0.56733341]
[1646448331511,11.66,2611.4,2611.3,0.06225146]
[1646448331710,18.30343914,2611.4,2611.3,0.06225146]
[1646448331909,19.40183914,2611.4,2611.3,0.06225146]
[1646448332721,7.74183914,2611.4,2611.3,0.06225146]
[1646448332916,3.24318012,2611.4,2611.3,0.06225146]
[1646448333109,2.0984,2611.4,2611.3,0.06225146]
[1646448333308,1.0984,2611.4,2611.3,0.06225146]
[1646448336970,1.0,2611.6,2611.3,0.06225146]
[1646448337179,1.23659997,2611.9,2611.3,0.06225146]
[1646448337369,1.15547995,2611.8,2611.3,0.06225146]
[1646448338809,1.53837995,2611.8,2611.3,0.06225146]
[1646448339050,1.15547995,2611.7,2611.3,0.06225146]
[1646448340816,10.03362154,2611.7,2611.3,0.06225146]
[1646448341017,8.87814159,2611.7,2611.3,0.06225146]
[1646448341216,9.87814159,2611.7,2611.3,0.06225146]
[1646448342060,1.15740342,2611.6,2611.3,0.06225146]
[1646448342252,8.79864501,2611.6,2611.3,0.06225146]
[1646448342552,7.64124159,2611.6,2611.3,0.06225146]
[1646448342751,8.64124159,2611.6,2611.3,0.06225146]
[1646448345910,1.15769027,2611.5,2611.3,0.06225146]
[1646448346707,7.64124159,2611.6,2611.3,0.06225146]
[1646448346906,1.13819997,2611.9,2611.3,0.06225146]
[1646448347106,1.15794736,2611.8,2611.3,0.06225146]
[1646448350355,2.37341075,2611.8,2611.3,0.06225146]
[1646448350555,1.15794736,2611.7,2611.3,0.06225146]
[1646448354005,1.15794736,2611.6,2611.3,0.06225146]
[1646448354208,0.32949997,2611.9,2611.3,0.06225146]
[1646448354408,1.15850021,2611.8,2611.3,0.06225146]
[1646448354607,2.32819547,2611.8,2611.3,0.06225146]
[1646448354807,1.15850021,2611.7,2611.3,0.06225146]
[1646448356008,1.15850021,2611.6,2611.3,0.06225146]
[1646448356220,1.15850021,2611.5,2611.3,0.06225146]
[1646448356409,1.15850021,2611.8,2611.3,0.06225146]
[1646448356610,1.15885973,2611.7,2611.3,0.06225146]
[1646448356857,1.15885973,2611.6,2611.3,0.06225146]
[1646448357059,1.15885973,2611.5,2611.3,0.06225146]
[1646448357257,0.32949997,2611.9,2611.3,0.06225146]
[1646448357456,1.15867076,2611.8,2611.3,0.06225146]
[1646448367269,1.15867076,2611.8,2611.5,0.99331766]
[1646448368508,1.15867076,2611.8,2611.3,0.06225146]
[1646448369320,1.15867076,2611.8,2611.4,0.39688156]
[1646448372085,1.15867076,2611.8,2611.4,0.39542466]
[1646448372958,0.00238287,2612.2,2611.8,0.58934349]
[1646448373159,0.70206665,2612.5,2611.8,0.58934349]
[1646448373357,0.70206665,2612.4,2611.8,0.58934349]
[1646448373559,0.00238287,2612.2,2611.8,0.58934349]
[1646448374158,0.00238287,2612.2,2611.8,1.47733313]
[1646448374375,0.70206665,2612.4,2611.8,1.47733313]
[1646448374564,0.00259291,2612.2,2611.8,1.47733313]
[1646448375607,0.70206665,2612.4,2611.8,1.47733313]
[1646448376011,0.00259291,2612.2,2611.8,1.47733313]
[1646448376410,0.00259291,2612.2,2611.8,1.42733313]
[1646448376810,0.70206665,2612.5,2611.8,1.42733313]
[1646448377018,0.00259291,2612.2,2611.8,1.42733313]
[1646448377313,0.00127,2612.2,2611.8,0.53934349]
[1646448377913,0.70206665,2612.8,2611.8,0.53934349]
[1646448378110,0.70206665,2612.8,2611.8,1.24399119]
[1646448378312,0.70206665,2612.8,2612.1,0.89550005]
[1646448379569,9.17206665,2612.9,2612.1,0.89550005]
[1646448380160,8.47,2612.9,2612.1,0.89550005]
[1646448380360,9.17206665,2612.9,2612.1,0.89550005]
[1646448380761,3.8829,2612.8,2611.8,1.75344349]
[1646448380963,4.58496665,2612.8,2611.8,1.75344349]
[1646448381166,0.3829,2612.7,2611.8,1.75344349]
[1646448381768,1.10973626,2612.6,2611.8,1.75344349]
[1646448381963,0.00273734,2612.4,2611.8,1.75344349]
[1646448382776,1.10973626,2612.6,2611.8,1.75344349]
[1646448383006,0.00273731,2612.3,2611.8,2.6639583]
[1646448384013,0.3829,2612.7,2611.8,2.6639583]
[1646448384316,0.00273727,2612.3,2611.8,2.6639583]
[1646448385115,1.08496665,2612.8,2611.8,2.6639583]
[1646448385315,0.3829,2612.8,2611.8,2.6639583]
[1646448385517,0.00273727,2612.3,2611.8,2.6639583]
[1646448385714,0.00273727,2612.3,2611.8,1.75344349]
[1646448386415,5.58496665,2612.8,2611.8,1.75344349]
[1646448386614,0.00273727,2612.3,2611.8,1.75344349]
[1646448387659,5.58496665,2612.8,2611.8,1.75344349]
[1646448387861,0.00273727,2612.3,2611.8,1.75344349]
[1646448388862,5.77626665,2612.8,2611.8,1.75344349]
[1646448389062,0.00273727,2612.3,2611.8,1.75344349]
[1646448389668,0.00273727,2612.3,2611.9,5.98079982]
[1646448390068,2.08496665,2612.8,2611.9,5.98079982]
[1646448390268,0.00266095,2612.3,2611.9,5.98079982]
[1646448390508,0.00266095,2612.3,2612.0,11.24159964]
[1646448391108,1.64851764,2612.7,2612.0,11.24159964]
[1646448391307,0.3829,2612.6,2612.0,11.24159964]
[1646448391608,0.00266103,2612.3,2612.0,5.62079982]
[1646448392321,1.54529989,2612.7,2612.1,0.39614805]
[1646448392511,1.16239989,2612.6,2612.1,0.39614805]
[1646448392706,1.89336665,2612.8,2612.1,0.39614805]
[1646448392707,0.00266103,2612.3,2612.1,0.39614805]
[1646448393609,1.16239989,2612.7,2612.2,1.19265082]
[1646448393809,0.00259996,2612.3,2612.2,1.19265082]
[1646448394016,0.00259996,2612.3,2612.2,1.5886732]
[1646448394864,1.16239989,2612.7,2612.2,1.5886732]
[1646448395069,0.00259995,2612.4,2612.3,0.39602238]
[1646448395466,1.16499984,2612.4,2612.3,0.39602238]
[1646448395865,0.00259995,2612.4,2612.3,0.39602238]
[1646448396066,1.16239989,2612.8,2612.3,0.39602238]
[1646448396269,0.00259992,2612.5,2612.3,0.39602238]
[1646448397068,0.00259992,2612.5,2612.0,5.62079982]
[1646448397270,1.16239989,2612.8,2612.1,0.39601914]
[1646448397471,0.00261211,2612.5,2612.1,0.39601914]
[1646448398514,1.16239989,2612.8,2612.1,0.39601914]
[1646448398710,0.00261213,2612.4,2612.1,0.39601914]
[1646448399316,0.00261213,2612.4,2612.2,0.01082911]
[1646448399754,4.66239989,2612.8,2612.2,0.01082911]
[1646448399915,0.00261214,2612.4,2612.2,0.01082911]
[1646448400115,0.00533546,2612.1,2612.0,5.62079982]
[1646448400327,0.00533546,2612.1,2612.0,6.01720461]
[1646448400516,1.16773535,2612.1,2612.0,6.01720461]
[1646448400916,1.16773535,2612.1,2612.0,5.62079982]
[1646448401415,1.16773535,2612.1,2612.0,6.01738125]
[1646448401859,1.16773535,2612.1,2612.0,5.62079982]
[1646448402058,1.16773535,2612.1,2612.0,6.01738371]
[1646448402658,1.16773535,2612.1,2612.0,5.62079982]
[1646448403558,1.16773535,2612.1,2612.0,6.01754121]
[1646448403760,1.16773535,2612.1,2612.0,5.62079982]
[1646448404866,1.16773535,2612.1,2612.0,6.06037916]
[1646448405064,0.00533546,2612.1,2612.0,6.06037916]
[1646448406724,0.00533546,2612.1,2612.0,7.2037942]
[1646448408136,0.00533546,2612.1,2612.0,10.78136512]
[1646448408329,0.00533546,2612.1,2612.0,11.78136512]
[1646448408526,0.00533546,2612.1,2612.0,11.97266512]
[1646448408726,0.00260949,2612.3,2612.2,0.3829]
[1646448408928,0.00260949,2612.3,2612.2,1.48280567]
[1646448409377,0.00096,2613.2,2612.4,1.3401]
[1646448409579,0.00096,2613.2,2613.0,0.94684898]
[1646448409580,1.16300927,2613.2,2613.0,0.94684898]
[1646448409778,1.16300927,2613.1,2612.5,1.1642]
[1646448409977,1.16300927,2613.0,2612.6,0.39655248]
[1646448410178,1.16300927,2612.9,2612.7,0.39655248]
[1646448410406,0.00096,2613.5,2612.8,0.39655248]
[1646448410597,1.16302692,2613.5,2612.9,0.39655248]
[1646448410791,1.16302692,2613.5,2612.6,0.39655248]
[1646448410792,5.36509357,2613.5,2612.6,0.39655248]
[1646448410981,0.70206665,2613.3,2612.7,0.39661233]
[1646448411182,0.70206665,2613.3,2612.8,0.39661233]
[1646448411378,0.70206665,2613.3,2612.5,1.1642]
[1646448411580,5.74799357,2613.3,2612.6,0.39662099]
[1646448411780,1.16302692,2613.2,2612.6,0.39662099]
[1646448411981,2.18540149,2613.2,2612.6,0.39662099]
[1646448412183,4.66302692,2613.1,2612.6,0.39662099]
[1646448412383,1.16302692,2613.0,2612.6,0.39662099]
[1646448412582,1.16302692,2613.0,2612.1,3.3077]
[1646448412781,1.16302692,2613.0,2612.2,0.39663352]
[1646448413012,0.00274257,2612.9,2612.2,0.39663352]
[1646448413211,0.00274257,2612.9,2612.2,1.50686858]
[1646448413418,0.00274257,2612.9,2612.3,0.39663352]
[1646448414011,1.16302692,2613.0,2612.3,0.39663352]
[1646448414219,0.00274262,2612.7,2612.3,0.39663352]
[1646448415220,1.86509357,2613.1,2612.3,0.39663352]
[1646448415417,0.00274265,2612.6,2612.3,0.39663352]
[1646448416519,1.86509357,2613.1,2612.3,0.39663352]
[1646448416773,0.00267311,2612.6,2612.3,0.39663352]
[1646448417665,1.16302692,2612.9,2612.3,0.39663352]
[1646448417864,0.00267311,2612.6,2612.3,0.39663352]
[1646448418265,0.00267311,2612.6,2612.4,0.3829]
[1646448418569,0.00267311,2612.6,2612.5,0.39663352]
[1646448418763,1.16497526,2613.2,2612.5,0.39663352]
[1646448419164,1.16497526,2613.2,2612.6,1.07864937]
[1646448419371,1.16401526,2613.2,2612.7,0.39663352]
[1646448419768,1.16401526,2613.2,2612.8,0.39663352]
[1646448419969,1.16401526,2613.2,2612.9,0.39663352]
[1646448420170,1.16401526,2613.2,2613.0,0.39663352]
[1646448420372,0.59183398,2612.9,2612.4,1.94116723]
[1646448420610,1.16401526,2612.8,2612.6,0.97005048]
[1646448420814,1.16401526,2612.8,2612.7,0.39683131]
[1646448421315,0.59183398,2612.9,2612.7,0.39683131]
[1646448421510,0.5944373,2612.9,2612.7,0.39683131]
[1646448422512,0.59183398,2612.9,2612.7,0.39683131]
[1646448422710,0.59443729,2612.9,2612.7,0.39683131]
[1646448423714,0.59183398,2612.9,2612.8,0.39683131]
[1646448423918,0.59445141,2612.9,2612.8,0.39683131]
[1646448424113,1.7576053,2612.9,2612.7,0.02624732]
[1646448424367,1.16315389,2612.8,2612.7,0.02624732]
[1646448424568,1.16315389,2612.8,2612.7,0.42290644]
[1646448428410,0.59183398,2612.9,2612.7,0.42290644]
[1646448428615,0.59444824,2612.9,2612.8,0.39665912]
[1646448428814,1.75560361,2612.9,2612.8,0.39665912]
[1646448429615,1.75298935,2612.9,2612.8,0.39665912]
[1646448431866,1.75298935,2612.9,2612.8,0.39557649]
[1646448438517,1.75298935,2612.9,2612.8,1.35633743]
[1646448438720,0.59045474,2612.9,2612.8,1.35633743]
[1646448439373,0.49045474,2612.9,2612.8,1.35633743]
[1646448446519,0.49045474,2612.9,2612.8,0.39557649]
[1646448447570,0.44045474,2612.9,2612.8,0.39557649]
[1646448449572,0.44045474,2612.9,2612.4,1.15260418]
[1646448449898,0.44045474,2612.9,2612.3,0.1913]
[1646448449899,3.5,2612.8,2612.3,0.1913]
[1646448450072,3.5,2612.8,2612.2,2.1519]
[1646448450269,0.3829,2612.8,2612.2,1.0]
[1646448450718,0.38526647,2612.8,2612.2,1.0]
[1646448450971,0.38526647,2612.8,2612.1,2.3077]
[1646448451317,0.38526647,2612.8,2612.1,1.19006993]
[1646448451720,0.00236651,2612.6,2612.1,1.19006993]
[1646448451917,0.00236651,2612.6,2612.2,0.40031931]
[1646448452422,1.16548946,2612.6,2612.2,0.40031931]
[1646448452617,1.16312295,2612.5,2612.2,0.40031931]
[1646448452820,1.16312295,2612.4,2612.2,0.40031931]
[1646448453018,1.16312295,2612.3,2612.2,0.40031931]
[1646448453418,0.00236652,2612.5,2612.2,0.40031931]
[1646448454018,0.00242786,2612.4,2612.2,0.40031931]
[1646448454268,1.16555081,2612.4,2612.2,0.40031931]
[1646448454466,1.16312295,2612.3,2612.2,0.40031931]
[1646448454765,0.00242786,2612.4,2612.2,0.40031931]
[1646448454971,1.16282888,2612.8,2612.2,0.40031931]
[1646448455371,1.06525674,2612.8,2612.2,0.40031931]
[1646448455569,0.82335474,2612.9,2612.2,0.40031931]
[1646448457773,0.00238044,2612.7,2612.0,5.62079982]
[1646448458017,1.08496665,2612.6,2612.0,5.62079982]
[1646448458418,0.70206665,2612.5,2612.0,5.62079982]
[1646448458722,0.70206665,2612.4,2612.0,5.62079982]
[1646448458920,1.1617465,2612.3,2612.0,5.62079982]
[1646448460224,0.97229726,2612.3,2612.0,5.62079982]
[1646448461122,0.97229726,2612.3,2612.0,3.94545466]
[1646448461322,1.67436391,2612.3,2612.0,3.94545466]
[1646448462363,0.97229726,2612.3,2612.0,3.94545466]
[1646448462965,4.27970665,2612.4,2612.0,3.94545466]
[1646448462966,2.08496665,2612.4,2612.0,3.94545466]
[1646448463163,1.70206665,2612.4,2612.0,3.94545466]
[1646448463364,0.70206665,2612.4,2612.0,3.94545466]
[1646448463866,1.08496665,2612.5,2612.0,3.94545466]
[1646448464063,1.08496665,2612.5,2611.8,0.53934349]
[1646448464668,1.08496665,2612.5,2611.8,1.41704179]
[1646448464870,0.38560146,2612.5,2611.8,1.41704179]
[1646448465717,0.3829,2612.5,2611.8,1.41704179]
[1646448466119,0.38560146,2612.5,2611.8,1.41704179]
[1646448467016,0.3829,2612.5,2611.8,1.41704179]
[1646448467218,0.38560146,2612.5,2611.8,1.41704179]
[1646448467416,0.00270146,2612.5,2611.8,1.41704179]
[1646448468218,1.4813,2612.7,2611.8,1.41704179]
[1646448468421,0.00259085,2612.5,2611.8,1.41704179]
[1646448468818,0.00259085,2612.5,2611.9,3.5]
[1646448469269,0.00259085,2612.5,2612.2,1.08435698]
[1646448469669,0.00259089,2612.5,2612.2,1.08435698]
[1646448470666,1.0984,2612.7,2612.2,1.08435698]
[1646448470967,0.002591,2612.5,2612.2,1.08435698]
[1646448471767,1.0984,2612.7,2612.2,1.08435698]
[1646448472166,0.00261589,2612.5,2612.2,1.08435698]
[1646448473016,1.0984,2612.7,2612.2,1.08435698]
[1646448473311,0.00261589,2612.5,2612.2,1.08435698]
[1646448474119,1.44045474,2612.9,2612.2,1.08435698]
[1646448474319,0.44045474,2612.9,2612.2,1.08435698]
[1646448474518,0.00261589,2612.5,2612.2,1.08435698]
[1646448475418,1.12597911,2612.8,2612.3,0.4319027]
[1646448475623,0.00261029,2612.5,2612.3,0.4319027]
[1646448476019,0.00261029,2612.5,2612.3,3.9319027]
[1646448476222,0.00261029,2612.5,2612.4,0.4319027]
[1646448476619,1.12597911,2612.8,2612.7,0.98727192]
[1646448476868,1.12597911,2612.8,2612.7,1.41917462]
[1646448477368,0.44045474,2612.9,2612.7,1.41917462]
[1646448477566,0.44045474,2612.9,2612.8,0.4319027]
[1646448478171,1.56940015,2612.9,2612.8,0.4319027]
[1646448478565,1.56940015,2612.9,2612.5,0.4319027]
[1646448478767,0.44306498,2612.9,2612.5,0.4319027]
[1646448478971,1.12622165,2612.8,2612.5,0.4319027]
[1646448479570,1.1288971,2612.8,2612.5,0.4319027]
[1646448480170,1.12622165,2612.8,2612.5,0.4319027]
[1646448480619,1.12622165,2612.8,2612.3,1.1591]
[1646448480620,1.12889711,2612.8,2612.6,0.4319027]
[1646448480828,1.12889711,2612.8,2612.3,1.1591]
[1646448481015,1.12889711,2612.8,2612.4,0.43200166]
[1646448481216,1.12889711,2612.8,2612.5,0.43200166]
[1646448481415,1.12622165,2612.8,2612.0,4.6888]
[1646448481614,0.00267547,2612.7,2612.3,1.07636755]
[1646448481816,0.00267547,2612.7,2612.4,0.43198469]
[1646448482622,1.12622165,2612.8,2612.4,0.43198469]
[1646448482821,0.00273782,2612.7,2612.4,0.43198469]
[1646448483819,1.12622165,2612.8,2612.4,0.43198469]
[1646448484035,1.12622165,2612.8,2612.4,3.93198469]
[1646448484036,0.00253628,2612.7,2612.4,3.93198469]
[1646448484287,0.00113262,2612.7,2612.5,0.43198469]
[1646448484477,0.00113262,2612.7,2612.6,3.5]
[1646448484712,0.00113262,2612.7,2612.6,0.43198469]
[1646448484979,0.44045474,2612.9,2612.6,0.43198469]
[1646448485277,0.44045474,2612.9,2612.8,0.90567892]
[1646448485480,1.56745627,2612.9,2612.8,1.33766361]
[1646448485983,1.56745627,2612.9,2612.8,0.43198469]
[1646448486381,1.56745627,2612.9,2612.5,0.43198469]
[1646448486579,0.44045474,2612.9,2612.6,0.43198469]
[1646448486779,0.44045474,2612.9,2612.7,0.43198469]
[1646448486979,0.44045474,2612.9,2612.8,0.43198469]
[1646448487579,1.56753526,2612.9,2612.6,0.43198469]
[1646448487782,1.12708052,2612.8,2612.6,0.43198469]
[1646448489018,1.12981989,2612.8,2612.6,0.43198469]
[1646448489823,1.12708052,2612.8,2612.6,0.43198469]
[1646448490066,1.12981989,2612.8,2612.6,0.43198469]
[1646448491033,1.12708052,2612.8,2612.6,0.43198469]
[1646448491227,1.12975005,2612.8,2612.6,0.43198469]
[1646448491425,1.12975005,2612.8,2612.7,0.43198469]
[1646448491627,1.12975005,2612.8,2612.4,0.43198469]
[1646448492072,1.12975005,2612.8,2612.2,3.93198469]
[1646448492273,1.12708052,2612.8,2612.3,0.43198469]
[1646448492472,0.00266956,2612.7,2612.5,1.16817835]
[1646448492671,0.00266956,2612.7,2612.6,0.43198469]
[1646448493472,1.12708052,2612.8,2612.6,0.43198469]
[1646448493678,1.12975006,2612.8,2612.6,0.43198469]
[1646448494677,1.12708052,2612.8,2612.6,0.43198469]
[1646448494882,1.12968004,2612.8,2612.6,0.43198469]
[1646448495715,1.12708052,2612.8,2612.6,0.43198469]
[1646448496117,1.12968004,2612.8,2612.6,0.43198469]
[1646448497121,1.12708052,2612.8,2612.6,0.43198469]
[1646448497319,1.12968004,2612.8,2612.6,0.43198469]
[1646448498219,1.12708052,2612.8,2612.6,0.43198469]
[1646448498421,1.12969422,2612.8,2612.6,0.43198469]
[1646448499467,1.12708052,2612.8,2612.6,0.43198469]
[1646448499692,1.12969422,2612.8,2612.6,0.43198469]
[1646448500670,1.12708052,2612.8,2612.6,0.43198469]
[1646448500969,0.0026137,2612.8,2612.6,0.43198469]
[1646448501377,0.0026137,2612.8,2612.7,3.5]
[1646448501572,0.0026137,2612.8,2612.7,3.93198469]
[1646448501795,0.44045474,2612.9,2612.7,3.93198469]
[1646448502169,0.44306524,2612.9,2612.8,0.43198469]
[1646448503019,1.56790292,2612.9,2612.6,0.43198469]
[1646448503218,0.44045474,2612.9,2612.6,0.43198469]
[1646448505223,1.12736103,2612.8,2612.6,0.43198469]
[1646448505424,0.44045474,2612.9,2612.8,0.62363121]
[1646448505624,0.24045474,2612.9,2612.8,1.0556159]
[1646448505924,1.3678153,2612.9,2612.8,1.0556159]
[1646448509176,1.3678153,2612.9,2612.8,1.06622331]
[1646448510179,2.38146388,2612.9,2612.8,1.06622331]
[1646448510385,2.38146388,2612.9,2612.8,0.63423862]
[1646448511017,1.3678153,2612.9,2612.8,0.63423862]
[1646448511517,1.3678153,2612.9,2612.8,1.07058181]
[1646448512717,1.3678153,2612.9,2612.8,2.12812883]
[1646448514377,1.3678153,2612.9,2612.8,2.11752142]
[1646448525620,0.24045474,2612.9,2612.8,2.11752142]
[1646448525824,1.37071602,2612.9,2612.8,2.11752142]
[1646448526020,0.24045474,2612.9,2612.8,2.11752142]
[1646448526221,1.37071952,2612.9,2612.8,2.11752142]
[1646448526521,1.37072746,2612.9,2612.8,2.11703347]
[1646448526726,1.37145409,2612.9,2612.8,2.11703347]
[1646448526925,0.24045474,2612.9,2612.8,1.05948645]
[1646448527131,1.37130959,2612.9,2612.8,1.05948645]
[1646448532476,1.37130959,2612.9,2612.8,1.05981499]
[1646448535625,1.37130959,2612.9,2612.8,0.62363121]
[1646448535824,1.37130959,2612.9,2612.8,1.0598201]
[1646448536227,1.35830959,2612.9,2612.8,1.0598201]
[1646448536423,1.35850458,2612.9,2612.8,1.0598201]
[1646448536626,0.22745474,2612.9,2612.8,1.0598201]
[1646448536876,1.35849111,2612.9,2612.8,1.0598201]
[1646448537101,1.35853626,2612.9,2612.8,1.0598201]
[1646448537276,1.35855418,2612.9,2612.8,1.0598201]
[1646448537482,0.22745474,2612.9,2612.8,1.0598201]
[1646448537677,1.35858918,2612.9,2612.8,1.0598201]
[1646448537877,0.22745474,2612.9,2612.8,1.0598201]
[1646448538075,1.35859496,2612.9,2612.8,1.0598201]
[1646448538275,1.35857727,2612.9,2612.8,1.0598201]
[1646448538476,1.35859985,2612.9,2612.8,1.0598201]
[1646448538676,0.22745474,2612.9,2612.8,1.0598201]
[1646448538879,1.35860843,2612.9,2612.8,1.0598201]
[1646448539079,1.35865454,2612.9,2612.8,1.0598201]
[1646448539277,1.35865988,2612.9,2612.8,1.0598201]
[1646448539507,0.22745474,2612.9,2612.8,1.0598201]
[1646448539684,1.35863746,2612.9,2612.8,1.0598201]
[1646448539881,0.22745474,2612.9,2612.8,1.0598201]
[1646448540085,1.25863411,2612.9,2612.8,1.0598201]
[1646448540281,0.12745474,2612.9,2612.8,1.0598201]
[1646448541025,1.25697612,2612.9,2612.8,1.0598201]
[1646448541372,1.25693477,2612.9,2612.8,1.0598201]
[1646448541528,0.12745474,2612.9,2612.8,1.0598201]
[1646448541725,1.25684002,2612.9,2612.8,1.0598201]
[1646448541925,0.12745474,2612.9,2612.8,1.0598201]
[1646448542128,1.25682436,2612.9,2612.8,1.0598201]
[1646448542326,0.12745474,2612.9,2612.8,1.0598201]
[1646448542528,1.25677456,2612.9,2612.8,1.0598201]
[1646448542736,0.12745474,2612.9,2612.8,1.0598201]
[1646448542927,1.25683391,2612.9,2612.8,1.0598201]
[1646448543127,0.12745474,2612.9,2612.8,1.0598201]
[1646448543527,1.25681618,2612.9,2612.8,1.0598201]
[1646448543727,0.12745474,2612.9,2612.8,1.0598201]
[1646448543927,1.25682161,2612.9,2612.8,1.0598201]
[1646448544127,0.12745474,2612.9,2612.8,1.0598201]
[1646448544376,1.25680359,2612.9,2612.8,1.0598201]
[1646448544577,0.12745474,2612.9,2612.8,1.0598201]
[1646448544775,1.256791,2612.9,2612.8,1.0598201]
[1646448544976,0.12745474,2612.9,2612.8,1.0598201]
[1646448545176,1.256786,2612.9,2612.8,1.0598201]
[1646448545385,1.25678046,2612.9,2612.8,1.0598201]
[1646448545612,0.12745474,2612.9,2612.8,1.0598201]
[1646448545778,1.25671915,2612.9,2612.8,1.0598201]
[1646448545977,1.25673391,2612.9,2612.8,1.0598201]
[1646448554881,1.25673391,2612.9,2612.8,2.24886501]
[1646448555085,1.25673391,2612.9,2612.8,5.74886501]
[1646448555284,1.25673391,2612.9,2612.8,6.45170027]
[1646448555525,1.25673391,2612.9,2612.8,5.74886501]
[1646448555731,1.25673391,2612.9,2612.8,2.24886501]
[1646448555929,0.12745474,2612.9,2612.8,2.24886501]
[1646448556533,1.24540917,2612.9,2612.8,2.24886501]
[1646448556731,1.24540917,2612.9,2612.8,2.95440328]
[1646448557032,1.24540917,2612.9,2612.8,2.24886501]
[1646448557230,1.24540917,2612.9,2612.8,2.95442199]
[1646448557530,1.24540917,2612.9,2612.8,2.24886501]
[1646448558733,1.24540917,2612.9,2612.8,2.95442199]
[1646448559782,1.24540917,2612.9,2612.8,2.24886501]
[1646448560083,0.12745474,2612.9,2612.8,2.24886501]
[1646448560583,0.12745474,2612.9,2612.8,2.95368056]
[1646448560988,0.00204173,2613.0,2612.8,2.95368056]
[1646448561185,0.00204173,2613.0,2612.9,0.43618889]
[1646448561583,0.00204173,2613.0,2612.9,1.14100444]
[1646448561783,0.00096,2613.5,2612.9,1.14100444]
[1646448561985,1.11689462,2613.6,2613.3,1.10011799]
[1646448562183,1.11689462,2613.6,2613.4,0.43618889]
[1646448562384,1.11689462,2613.5,2613.4,0.43618889]
[1646448562595,1.81896127,2613.7,2613.4,0.43618889]
[1646448563031,1.81810071,2613.7,2613.4,0.43618889]
[1646448563233,1.11689462,2613.7,2613.4,0.43618889]
[1646448563431,1.11689462,2613.6,2613.4,0.43618889]
[1646448563651,1.11689462,2613.5,2613.4,0.43618889]
[1646448564037,1.11893635,2613.7,2613.1,0.43618889]
[1646448564243,1.23755997,2613.8,2613.0,1.1769]
[1646448564244,1.11689462,2613.6,2613.2,0.43618889]
[1646448564438,1.11689462,2613.5,2613.3,0.43618889]
[1646448564638,0.00274236,2613.6,2613.4,0.43618889]
[1646448564938,0.00274236,2613.6,2613.5,0.43618889]
[1646448565136,0.00274236,2613.6,2613.1,0.43618889]
[1646448565538,1.1172645,2613.7,2613.2,1.01726262]
[1646448565739,1.11904684,2613.7,2613.3,0.43618889]
[1646448566539,1.11904684,2613.7,2613.4,0.43618889]
[1646448566783,1.11904684,2613.7,2613.1,4.80838645]
[1646448566784,1.1163045,2613.7,2613.1,4.80838645]
[1646448566974,0.00274235,2613.6,2613.2,0.44905609]
[1646448567885,6.05790724,2613.8,2613.2,0.44905609]
[1646448568080,1.32034727,2613.7,2613.1,3.13375241]
[1646448568280,1.32034727,2613.7,2612.8,0.62363121]
[1646448568281,0.00274238,2613.5,2612.8,0.62363121]
[1646448569079,1.34234935,2613.4,2612.8,0.62363121]
[1646448569281,0.00274069,2613.3,2612.8,0.62363121]
[1646448569486,3.50274069,2613.3,2612.8,0.62363121]
[1646448569680,0.00274069,2613.3,2612.8,0.62363121]
[1646448570082,3.50274069,2613.3,2612.8,0.62363121]
[1646448570282,3.5,2613.3,2612.8,0.62363121]
[1646448570523,0.00274071,2613.2,2612.8,0.62363121]
[1646448571527,3.5,2613.3,2612.8,0.62363121]
[1646448571731,0.00274073,2613.1,2612.8,0.62363121]
[1646448571928,3.88145151,2613.3,2612.8,0.62363121]
[1646448572140,4.88145151,2613.3,2612.8,0.62363121]
[1646448573130,5.58583203,2613.3,2612.8,0.62363121]